{"text_format":"1","workbook":"xlsx","n_sheets":21,"sheets":["Disclaimer","Instructions","Summary","Configure System","Configure Module 1","Configure Module 2","Configure Module 3","Configure Module 4","Compute_Module","Chassis_Definition","Processors","Memory","PCIe","SSD","Peripherals","Taylor Pass_Normal","Taylor Pass_Fan Fail","Walker Pass_Normal","Walker Pass_Fan Fail","Revision","Macro1"],"not_rendered":{"charts":9,"images":2,"macros":1,"external_links":3,"defined_names":393,"comments":0,"pivot_tables":0},"unopened":[],"bounds":{"document_bytes":16777216,"sheet_cells":100000,"rows_first":2000,"rows_last":500,"rows_between":2000,"halvings":0,"cell_chars":16384,"cell_head_chars":4096},"cells_cut":0,"cells_raw":0,"read":"whole","date_system":"1900"}

{"sheet":"Disclaimer","index":0,"n_rows":0,"n_cols":0,"rows_kept":0,"cut":false,"hidden":false,"merged":[]}

{"sheet":"Instructions","index":1,"n_rows":40,"n_cols":1,"rows_kept":40,"cut":false,"hidden":false,"merged":[]}
["        Power Budget Instructions"]
[]
[]
[]
[]
[]
[]
[]
[]
[]
[]
[]
[]
[]
[]
[]
[]
[]
[]
[]
[]
[]
[]
[]
[]
[]
[]
[]
[]
[]
[]
[]
[]
[]
[]
[]
[]
[]
[]
["Press the Start button to begin using the Power Budget Tool"]

{"sheet":"Summary","index":2,"n_rows":30,"n_cols":15,"rows_kept":30,"cut":false,"hidden":false,"merged":[[0,1,0,3],[15,0,15,3],[24,11,26,11],[27,11,29,11],[6,8,6,9]]}
["Power Budget",null,null,null,"4 nodes -> 3+0\n3 nodes -> 2+1\n2 nodes -> 2+1\n1 node -> 1+2",null,null,"Product Code Summary"]
["System Totals"," 12V\nMain\n(Amps)","12V\nStby\n(Amps)","Total System Watts ","Deshabilitar input voltage 115V celda B19",null,null,"H2216KPKR2","H2216KPFKR2","H2216TPKR2","H2216TPFKR2"]
[{"$f":"CONCATENATE(\"Chassis/Power Supply: \",INDEX(Chassis_Definition!A3:A7,'Configure System'!B4))","v":"Chassis/Power Supply: (Select Chassis)"},{"$f":"'Configure System'!E6","v":0},{"$f":"'Configure System'!F6","v":0},{"$f":"'Configure System'!G6","v":0}]
[{"$f":"CONCATENATE(\"Compute Module 1: \",INDEX(Compute_Module!A$2:A$16,'Configure Module 1'!B4))","v":"Compute Module 1: (Select Compute Node)"},{"$f":"'Configure Module 1'!$K$13","v":0},{"$f":"'Configure Module 1'!L13","v":0},{"$f":"'Configure Module 1'!M13","v":0},"Nodo 56c -> 900W",null,null,"H2224KPKR2(1600W)",null,"H2224TPKR2(1600W)"]
[{"$f":"CONCATENATE(\"Compute Module 2: \",INDEX(Compute_Module!A$2:A$16,'Configure Module 2'!B4))","v":"Compute Module 2: (Select Compute Node)"},{"$f":"'Configure Module 2'!$K$13","v":0},{"$f":"'Configure Module 2'!L13","v":0},{"$f":"'Configure Module 2'!M13","v":0},"chassis -> 180",null,null,"H2224KPKR2(2200W)",null,"H2224TPKR2(2200W)"]
[{"$f":"CONCATENATE(\"Compute Module 3: \",INDEX(Compute_Module!A$2:A$16,'Configure Module 3'!B4))","v":"Compute Module 3: (Select Compute Node)"},{"$f":"'Configure Module 3'!$K$13","v":0},{"$f":"'Configure Module 3'!L13","v":0},{"$f":"'Configure Module 3'!M13","v":0}]
[{"$f":"CONCATENATE(\"Compute Module 4: \",INDEX(Compute_Module!A$2:A$16,'Configure Module 4'!B4))","v":"Compute Module 4: (Select Compute Node)"},{"$f":"'Configure Module 4'!$K$13","v":0},{"$f":"'Configure Module 4'!L13","v":0},{"$f":"'Configure Module 4'!M13","v":0},null,null,null,null,"PSU Limitation"]
[null,null,null,null,null,null,null,"H2312KR/2x1600W CRPS/3x4056 dual rotor fan",{"$f":"IF(B19=1,1600,1000)","v":1600},{"$f":"IF(B19=1,2160,1360)","v":2160}]
["System Totals:",{"$f":"IFERROR(SUM(B3:B8),0)","v":0},{"$f":"SUM(C3:C8)","v":0},{"$f":"SUM(D3:D8)","v":0},null,null,null,"H2216KR/2x1600W CRPS/3x4056 dual rotor fan",{"$f":"IF(B19=1,1600,1000)","v":1600},{"$f":"IF(B19=1,2160,1360)","v":2160}]
["CLST Allowance",{"$f":"'Configure Module 1'!K14+'Configure Module 2'!#REF!+'Configure Module 3'!#REF!+'Configure Module 4'!#REF!","v":{"$error":"#REF!"}},{"$f":"'Configure Module 1'!L14+'Configure Module 2'!#REF!+'Configure Module 3'!#REF!+'Configure Module 4'!#REF!","v":{"$error":"#REF!"}},{"$f":"B10*12","v":{"$error":"#REF!"}},null,null,null,"H2224KPKR2(1600W)  CRPS/3x4056 dual rotor fan"]
["System Power during CLST",{"$f":"B9-B10","v":{"$error":"#REF!"}},{"$f":"C9-C10","v":{"$error":"#REF!"}},{"$f":"D9-D10","v":{"$error":"#REF!"}},null,null,null,"H2224KPKR2(2200W)  CRPS/3x4056 dual rotor fan"]
[{"$f":"INDEX(H19:H20,B19)&\"VAC\"&\" PSU DC Output Limits (3+0 Mode)\"","v":"240VAC PSU DC Output Limits (3+0 Mode)"},{"$f":"INDEX(Chassis_Definition!D3:E5,'Configure System'!B4,B19)*3","v":0},{"$f":"INDEX(Chassis_Definition!F3:F8,'Configure System'!B4)*3","v":0},{"$f":"PS1_12*12","v":0},"<-- These limits may change based on inlet voltage",null,null,"PSU","Rating","OC CLST"]
[{"$f":"INDEX(H19:H20,B19)&\"VAC\"&\" PSU DC Output Limits (2+1 Mode)\"","v":"240VAC PSU DC Output Limits (2+1 Mode)"},{"$f":"INDEX(Chassis_Definition!D3:E5,'Configure System'!B4,B19)*2","v":0},{"$f":"INDEX(Chassis_Definition!F3:F8,'Configure System'!B4)*2","v":0},{"$f":"B13*12","v":0},null,null,null,{"$f":"INDEX(I8:J11,'Configure System'!B4,1)","v":1600},{"$f":"INDEX(I8:J11,'Configure System'!B4,1)","v":1600},{"$f":"INDEX(I8:J11,'Configure System'!B4,2)","v":2160}]
["Margins to Limit (3+0 Mode)",{"$f":"PS1_12-B9","v":0},{"$f":"PS1_5VSB-C9","v":0},{"$f":"ps1CombLim-PowerTotal","v":0},{"$f":"IF(D14<0,\"<-- Limits Exceeded!\",\"<--System Margins\")","v":"<--System Margins"},null,null,null,{"$f":"I13-PowerTotal","v":1600},{"$f":"J13-PowerTotal","v":2160}]
["Margins to Limit (2+1 Mode)",{"$f":"B13-B9","v":0},{"$f":"C13-C9","v":0},{"$f":"D13-PowerTotal","v":0},null,null,null,null,"Unconstrained Redundant Mode: No system throttle.  All 4 nodes work normally.","Optimal Redundant Mode:\n1. With BIOS setting “server management - shutdown policy”  “disable”, all nodes in the system may be throttled and have lower performance.\n2. With BIOS “server management--shutdown policy” “enable”, Node3 and 4 will shutdown while Node1 and 2 keep running without throttling. Node 1 and Node 2 have no performance lose.","Non Redundant Mode: All nodes in the  system may shutdown due to OCP."]
["Negative margins show configuration exceeds a specified limit."]
[]
["AC inlet power estimate (below)"]
["Input Voltage:",1," (Volts)",null,null,null,null,240,{"$f":"INDEX(Chassis_Definition!M4:N8,'Configure System'!B4-1,Summary!B19)","v":{"$error":"#VALUE!"}}]
["Estimated  Inlet Power:",{"$f":"IF(D14>0,PowerTotal/INDEX(Chassis_Definition!M3:M8,'Configure System'!B4,Summary!B19),\"NA\")","v":"NA"}," (Watts)",null,null,null,null,115]
["Estimated Inlet Current:",{"$f":"IF(B20=\"NA\",\"NA\",B20/ABS(INDEX(H19:H22,B19)))","v":"NA"}," (Amps)"]
["Estimated Thermal Dissipation:",{"$f":"IF(B20=\"NA\",\"NA\",B20*3.41)","v":"NA"}," (BTU/Hr)"]
["Note: Estimates are most accurate at max loading."]
[null,null,null,null,null,null,null,null,null,null,null,"PSU","System Loading","Working Mode\n@1 PSU failure","Description"]
[null,null,null,null,null,null,null,null,null,null,null,null,"<Rating","Unconstrained Redundant Mode","No system throttle.  All 4 nodes work normally."]
["If your desired configuration exceeds the power supply limits, two power supplies are required.  The two power supplies will operate in a current sharing mode ",null,null,null,null,null,null,null,null,null,null,null,"Rating< <OC CLST","Optimal Redundant Mode","1. With BIOS setting “server management - shutdown policy”  “disable”, all   nodes  in the system may be  throttled  and have lower performance.\n2. With BIOS “server management--shutdown policy” “enable”, Node3 and 4  will shutdown  while Node1 and 2 keep running without  throttling. Node 1 and Node 2 have no performance lose. "]
["to deliver the additional power needed for your configuration.  Furthermore, the two power supplies may need to be sourced from separate AC circuits in order to not",null,null,null,null,null,null,null,null,null,null,null,">OC CLST","Non Redundant Mode","All nodes in the  system may shutdown due to OCP."]
["exceed maximum AC outlet current.  Exceeding maximum AC outlet current may cause a circuit breaker to trip."]
[]
["Revision:",{"$f":"Revision!B1","v":1},{"$f":"Revision!A1","v":"2019-10-29"}]

{"sheet":"Configure System","index":3,"n_rows":7,"n_cols":17,"rows_kept":7,"cut":false,"hidden":false,"merged":[]}
["Power Budget","CONFIGURE SYSTEM"]
[null,"Description",null,null,"12V Main (Amps)","12V Stby (Amps)","Power\n(watts)"]
[null,null,null,null,null,null,null,null,null,null,null,null,{"$f":"B3","v":0},null,"  ","  ","  "]
["Define Chassis:",1,null,null,{"$f":"INDEX(Chassis_Definition!L3:L5,B4)","v":0},{"$f":"INDEX(Chassis_Definition!F3:F5,B4)","v":0},{"$f":"(E4*12)+(F4*12)","v":0},null,null,null,null,null,{"$f":"B4","v":1},null,"  ","  ","  "]
[]
[null,"SubTotals:",null,null,{"$f":"SUM(E4:E4)","v":0},{"$f":"SUM(F4:F4)","v":0},{"$f":"SUM(G4:G4)","v":0}]
[null,"SubTotal Chassis Power (Watts):",null,null,{"$f":"E6*12","v":0},{"$f":"F6*12","v":0},{"$f":"SUM(E7:F7)","v":0}]

{"sheet":"Configure Module 1","index":4,"n_rows":14,"n_cols":22,"rows_kept":14,"cut":false,"hidden":false,"merged":[[1,0,1,12]]}
["Power Budget"]
[{"$f":"CONCATENATE(\"Compute Module 1: \",INDEX(Compute_Module!A$2:A$16,$B4),\" Configuration\")","v":"Compute Module 1: (Select Compute Node) Configuration"},null,null,null,null,null,null,null,null,null,null,null,null,null,"CPU VRM Efficiency","3.3v VRM Efficiency","5v VRM Efficiency"]
[null,"Description",null,"+3.3V (amps)","+5V (amps)"," +12V (amps)","12V CPU1 (amps)","12V CPU2 (amps)","5V \nstby (amps)","Max 3.3v/5v (watts)","12V\nMAIN\n(Amps)","12V\nStby\n(Amps)","Power (Watts)",null,{"$f":"INDEX(Compute_Module!H$2:H$11,$B4)","v":1},{"$f":"INDEX(Compute_Module!I$2:I$11,$B4)","v":1},{"$f":"INDEX(Compute_Module!J$2:J$11,$B4)","v":1}]
["Compute Node:",1,null,{"$f":"INDEX(Compute_Module!B$2:B$16,$B4) *1","v":0},{"$f":"INDEX(Compute_Module!C$2:C$16,$B4) *1","v":0},{"$f":"INDEX(Compute_Module!D2:D14,'Configure Module 1'!B$4)","v":0},null,null,{"$f":"INDEX(Compute_Module!F$2:F$16,$B4) *1","v":0},null,{"$f":"INDEX(Compute_Module!D2:D14,'Configure Module 1'!B$4)","v":0},{"$f":"INDEX(Compute_Module!F$2:F$16,$B4) *1","v":0},{"$f":"INDEX(Compute_Module!G$2:G$16,$B4) *1","v":0},null,null,null,null,null,null,1,{"$f":"IF(AND('Configure System'!B4=2,'Configure Module 1'!B4>=7),\"---> Chassis and node type mismatch\",\"---> Chassis and node type match\")","v":"---> Chassis and node type match"}]
["SSD 1:",1,null,null,null,{"$f":"INDEX(SSD!$D$2:$D$7,'Configure Module 1'!B$5)","v":0},null,null,null,null,{"$f":"INDEX(SSD!$D$2:$D$7,'Configure Module 1'!B$5)","v":0},{"$f":"I5/0.87","v":0},{"$f":"K5*12","v":0},"* Only allowed in 2U node selection",null,null,null,null,null,1]
["SSD 2:",1,null,null,null,{"$f":"INDEX(SSD!$D$2:$D$7,'Configure Module 1'!B$6)","v":0},null,null,null,null,{"$f":"INDEX(SSD!$D$2:$D$7,'Configure Module 1'!B$6)","v":0},{"$f":"I6/0.87","v":0},{"$f":"K6*12","v":0},"* Only allowed in 2U node selection",null,null,null,null,null,1,null,"* Arreglar botón Define hard drive types"]
["CPU 1 Memory:",1,1,null,null,null,{"$f":"(C7-1)*INDEX(Memory!B$4:B$11,$B7)/12/0.9","v":0},null,null,null,{"$f":"INDEX(Memory!B$4:B$11,$B7)*INDEX(Memory!$A$24:$A$27,$C$7)/12","v":0},{"$f":"I7/0.87/12","v":0},{"$f":"INDEX(Memory!B$4:B$11,$B7)*INDEX(Memory!$A$24:$A$27,$C$7)","v":0},null,null,null,null,null,null,4,null,"* mandar a llamar valores de las memorias"]
["CPU 2 Memory:",1,1,null,null,null,null,{"$f":"(C8-1)*INDEX(Memory!B$4:B$11,$B8)/12/0.9","v":0},null,null,{"$f":"INDEX(Memory!B$4:B$11,$B8)*INDEX(Memory!$A$24:$A$27,$C$8)/12","v":0},{"$f":"I8/0.87/12","v":0},{"$f":"INDEX(Memory!B$4:B$11,$B8)*INDEX(Memory!$A$24:$A$27,$C$8)","v":0},null,null,null,null,null,null,null,null,"* mandar a llamar valores de las memorias"]
["Riser 1:",1,null,{"$f":"INDEX(PCIe!B$2:B$12,$B9)","v":0},{"$f":"INDEX(PCIe!C$2:C$12,$B9)","v":0},{"$f":"INDEX(PCIe!D$2:D$12,$B9)+((D9*3.3)/12)/$P$3+((E9*5)/12)/$Q$3","v":0},null,null,null,null,{"$f":"INDEX(PCIe!D$2:D$12,$B9)+((D9*3.3)/12)/$P$3+((E9*5)/12)/$Q$3","v":0},{"$f":"I9/0.87/12","v":0},{"$f":"F9*12","v":0}]
["Riser 2:",1,null,{"$f":"INDEX(PCIe!B$14:B$20,$B10)","v":0},{"$f":"INDEX(PCIe!C$14:C$20,$B10)","v":0},{"$f":"INDEX(PCIe!D$14:D$19,$B10)+((D10*3.3)/12)/$P$3+((E10*5)/12)/$Q$3","v":0},null,null,null,null,{"$f":"INDEX(PCIe!D$14:D$19,$B10)+((D10*3.3)/12)/$P$3+((E10*5)/12)/$Q$3","v":0},{"$f":"I10/0.87/12","v":0},{"$f":"F10*12","v":0}]
["M.2: ",1,1,null,null,{"$f":"(C11-1)*INDEX(SSD!D$11:D$17,$B11)","v":0},null,null,null,null,{"$f":"(C11-1)*INDEX(SSD!D$11:D$17,$B11)","v":0},{"$f":"I11/0.87/12","v":0},{"$f":"F11*12","v":0},"* Up to 1 per riser"]
["Peripheral:",1]
[null,"Compute Module 1 SubTotals:",null,null,null,{"$f":"SUM(F5:F10)","v":0},{"$f":"SUM(G5:G10)","v":0},{"$f":"SUM(H7:H10)","v":0},{"$f":"SUM(I5:I10)","v":0},null,{"$f":"SUM(K4:K11)","v":0},{"$f":"SUM(L5:L10)","v":0},{"$f":"SUM(M4:M11)","v":0},null,"CPU1","CPU2","DIMM1","DIMM2"]
[null,"CLST Allowance:",null,null,null,null,null,null,null,null,{"$f":"M14/12","v":{"$error":"#REF!"}},0,{"$f":"SUM(O14:R14)","v":{"$error":"#REF!"}},null,{"$f":"IF(B5>1,INDEX(Processors!G2:G54,$B5)*(C6-1),0)","v":0},{"$f":"IF(#REF!>1,INDEX(Processors!G2:G54,#REF!)*(#REF!-1),0)","v":{"$error":"#REF!"}},{"$f":"IF(C7>1,INDEX(Memory!Q4:T9,'Configure Module 1'!B7,$C7-1),0)","v":0},{"$f":"IF(C8>1,INDEX(Memory!Q4:T9,'Configure Module 1'!B8,$C8-1),0)","v":0}]

{"sheet":"Configure Module 2","index":5,"n_rows":17,"n_cols":22,"rows_kept":17,"cut":false,"hidden":false,"merged":[[1,0,1,12]]}
["Power Budget"]
[{"$f":"CONCATENATE(\"Compute Module 2: \",INDEX(Compute_Module!A$2:A$16,$B4),\" Configuration\")","v":"Compute Module 2: (Select Compute Node) Configuration"},null,null,null,null,null,null,null,null,null,null,null,null,null,"CPU VRM Efficiency","3.3v VRM Efficiency","5v VRM Efficiency"]
[null,"Description",null,"+3.3V (amps)","+5V (amps)"," +12V (amps)","12V CPU1 (amps)","12V CPU2 (amps)","5V \nstby (amps)","Max 3.3v/5v (watts)","12V\nMAIN\n(Amps)","12V\nStby\n(Amps)","Power (Watts)",null,{"$f":"INDEX(Compute_Module!H$2:H$11,$B4)","v":1},{"$f":"INDEX(Compute_Module!I$2:I$11,$B4)","v":1},{"$f":"INDEX(Compute_Module!J$2:J$11,$B4)","v":1}]
["Compute Node:",1,null,{"$f":"INDEX(Compute_Module!B$2:B$16,$B4) *1","v":0},{"$f":"INDEX(Compute_Module!C$2:C$16,$B4) *1","v":0},{"$f":"INDEX(Compute_Module!D2:D14,'Configure Module 2'!B$4)","v":0},null,null,{"$f":"INDEX(Compute_Module!F$2:F$16,$B4) *1","v":0},null,{"$f":"INDEX(Compute_Module!D2:D14,'Configure Module 2'!B$4)","v":0},{"$f":"INDEX(Compute_Module!F$2:F$16,$B4) *1","v":0},{"$f":"INDEX(Compute_Module!G$2:G$16,$B4) *1","v":0},null,null,null,null,null,null,1,{"$f":"IF(AND('Configure System'!B4=2,'Configure Module 1'!B4>=7),\"---> Chassis and node type mismatch\",\"---> Chassis and node type match\")","v":"---> Chassis and node type match"}]
["SSD 1:",1,null,null,null,{"$f":"INDEX(SSD!$D$2:$D$7,'Configure Module 2'!B$5)","v":0},null,null,null,null,{"$f":"INDEX(SSD!$D$2:$D$7,'Configure Module 2'!B$5)","v":0},{"$f":"I5/0.87","v":0},{"$f":"K5*12","v":0},"* Only allowed in 2U node selection",null,null,null,null,null,1]
["SSD 2:",1,null,null,null,{"$f":"INDEX(SSD!$D$2:$D$7,'Configure Module 2'!B$6)","v":0},null,null,null,null,{"$f":"INDEX(SSD!$D$2:$D$7,'Configure Module 2'!B$6)","v":0},{"$f":"I6/0.87","v":0},{"$f":"K6*12","v":0},"* Only allowed in 2U node selection",null,null,null,null,null,1,null,"* Arreglar botón Define hard drive types"]
["CPU 1 Memory:",1,1,null,null,null,{"$f":"(C7-1)*INDEX(Memory!B$4:B$11,$B7)/12/0.9","v":0},null,null,null,{"$f":"INDEX(Memory!B$4:B$11,$B7)*INDEX(Memory!$A$24:$A$27,$C$7)/12","v":0},{"$f":"I7/0.87/12","v":0},{"$f":"INDEX(Memory!B$4:B$11,$B7)*INDEX(Memory!$A$24:$A$27,$C$7)","v":0},null,null,null,null,null,null,4,null,"* mandar a llamar valores de las memorias"]
["CPU 2 Memory:",1,1,null,null,null,null,{"$f":"(C8-1)*INDEX(Memory!B$4:B$11,$B8)/12/0.9","v":0},null,null,{"$f":"INDEX(Memory!B$4:B$11,$B8)*INDEX(Memory!$A$24:$A$27,$C$8)/12","v":0},{"$f":"I8/0.87/12","v":0},{"$f":"INDEX(Memory!B$4:B$11,$B8)*INDEX(Memory!$A$24:$A$27,$C$8)","v":0},null,null,null,null,null,null,null,null,"* mandar a llamar valores de las memorias"]
["Riser 1:",1,null,{"$f":"INDEX(PCIe!B$2:B$12,$B9)","v":0},{"$f":"INDEX(PCIe!C$2:C$12,$B9)","v":0},{"$f":"INDEX(PCIe!D$2:D$12,$B9)+((D9*3.3)/12)/$P$3+((E9*5)/12)/$Q$3","v":0},null,null,null,null,{"$f":"INDEX(PCIe!D$2:D$12,$B9)+((D9*3.3)/12)/$P$3+((E9*5)/12)/$Q$3","v":0},{"$f":"I9/0.87/12","v":0},{"$f":"F9*12","v":0}]
["Riser 2:",1,null,{"$f":"INDEX(PCIe!B$14:B$20,$B10)","v":0},{"$f":"INDEX(PCIe!C$14:C$20,$B10)","v":0},{"$f":"INDEX(PCIe!D$14:D$19,$B10)+((D10*3.3)/12)/$P$3+((E10*5)/12)/$Q$3","v":0},null,null,null,null,{"$f":"INDEX(PCIe!D$14:D$19,$B10)+((D10*3.3)/12)/$P$3+((E10*5)/12)/$Q$3","v":0},{"$f":"I10/0.87/12","v":0},{"$f":"F10*12","v":0}]
["M.2: ",1,1,null,null,{"$f":"(C11-1)*INDEX(SSD!D$11:D$17,$B11)","v":0},null,null,null,null,{"$f":"(C11-1)*INDEX(SSD!D$11:D$17,$B11)","v":0},{"$f":"I11/0.87/12","v":0},{"$f":"F11*12","v":0},"* Up to 1 per riser"]
["Peripheral:",1]
[null,"Compute Module 1 SubTotals:",null,null,null,{"$f":"SUM(F5:F10)","v":0},{"$f":"SUM(G5:G10)","v":0},{"$f":"SUM(H7:H10)","v":0},{"$f":"SUM(I5:I10)","v":0},null,{"$f":"SUM(K4:K11)","v":0},{"$f":"SUM(L5:L10)","v":0},{"$f":"SUM(M4:M11)","v":0},null,"CPU1","CPU2","DIMM1","DIMM2"]
[null,"CLST Allowance:",null,null,null,null,null,null,null,null,{"$f":"M14/12","v":{"$error":"#REF!"}},0,{"$f":"SUM(O14:R14)","v":{"$error":"#REF!"}},null,{"$f":"IF(B5>1,INDEX(Processors!G2:G54,$B5)*(C6-1),0)","v":0},{"$f":"IF(#REF!>1,INDEX(Processors!G2:G54,#REF!)*(#REF!-1),0)","v":{"$error":"#REF!"}},{"$f":"IF(C7>1,INDEX(Memory!Q4:T9,'Configure Module 1'!B7,$C7-1),0)","v":0},{"$f":"IF(C8>1,INDEX(Memory!Q4:T9,'Configure Module 1'!B8,$C8-1),0)","v":0}]
[]
[]
[null,null,null,null,null,null,null,{"$f":"0.2*1","v":0.2}]

{"sheet":"Configure Module 3","index":6,"n_rows":14,"n_cols":20,"rows_kept":14,"cut":false,"hidden":false,"merged":[[1,0,1,12]]}
["Power Budget"]
[{"$f":"CONCATENATE(\"Compute Module 3: \",INDEX(Compute_Module!A$2:A$16,$B4),\" Configuration\")","v":"Compute Module 3: (Select Compute Node) Configuration"},null,null,null,null,null,null,null,null,null,null,null,null,null,"CPU VRM Efficiency","3.3v VRM Efficiency","5v VRM Efficiency"]
[null,"Description",null,"+3.3V (amps)","+5V (amps)"," +12V (amps)","12V CPU1 (amps)","12V CPU2 (amps)","5V \nstby (amps)","Max 3.3v/5v (watts)","12V\nMAIN\n(Amps)","12V\nStby\n(Amps)","Power (Watts)",null,{"$f":"INDEX(Compute_Module!H$2:H$11,$B4)","v":1},{"$f":"INDEX(Compute_Module!I$2:I$11,$B4)","v":1},{"$f":"INDEX(Compute_Module!J$2:J$11,$B4)","v":1}]
["Compute Node:",1,null,{"$f":"INDEX(Compute_Module!B$2:B$16,$B4) *1","v":0},{"$f":"INDEX(Compute_Module!C$2:C$16,$B4) *1","v":0},{"$f":"INDEX(Compute_Module!D2:D14,'Configure Module 3'!B$4)","v":0},null,null,{"$f":"INDEX(Compute_Module!F$2:F$16,$B4) *1","v":0},null,{"$f":"INDEX(Compute_Module!D2:D14,'Configure Module 3'!B$4)","v":0},{"$f":"INDEX(Compute_Module!F$2:F$16,$B4) *1","v":0},{"$f":"INDEX(Compute_Module!G$2:G$16,$B4) *1","v":0},null,null,null,null,null,null,1]
["SSD 1:",1,null,null,null,{"$f":"INDEX(SSD!$D$2:$D$7,'Configure Module 3'!B$5)","v":0},null,null,null,null,{"$f":"INDEX(SSD!$D$2:$D$7,'Configure Module 3'!B$5)","v":0},{"$f":"I5/0.87","v":0},{"$f":"K5*12","v":0},"* Only allowed in 2U node selection",null,null,null,null,null,1]
["SSD 2:",1,null,null,null,{"$f":"INDEX(SSD!$D$2:$D$7,'Configure Module 3'!B$6)","v":0},null,null,null,null,{"$f":"INDEX(SSD!$D$2:$D$7,'Configure Module 3'!B$6)","v":0},{"$f":"I6/0.87","v":0},{"$f":"K6*12","v":0},"* Only allowed in 2U node selection",null,null,null,null,null,1]
["CPU 1 Memory:",1,1,null,null,null,{"$f":"(C7-1)*INDEX(Memory!B$4:B$11,$B7)/12/0.9","v":0},null,null,null,{"$f":"INDEX(Memory!B$4:B$11,$B7)*INDEX(Memory!$A$24:$A$27,$C$7)/12","v":0},{"$f":"I7/0.87/12","v":0},{"$f":"INDEX(Memory!B$4:B$11,$B7)*INDEX(Memory!$A$24:$A$27,$C$7)","v":0},null,null,null,null,null,null,4]
["CPU 2 Memory:",1,1,null,null,null,null,{"$f":"(C8-1)*INDEX(Memory!B$4:B$11,$B8)/12/0.9","v":0},null,null,{"$f":"INDEX(Memory!B$4:B$11,$B8)*INDEX(Memory!$A$24:$A$27,$C$8)/12","v":0},{"$f":"I8/0.87/12","v":0},{"$f":"INDEX(Memory!B$4:B$11,$B8)*INDEX(Memory!$A$24:$A$27,$C$8)","v":0}]
["Riser 1:",1,null,{"$f":"INDEX(PCIe!B$2:B$12,$B9)","v":0},{"$f":"INDEX(PCIe!C$2:C$12,$B9)","v":0},{"$f":"INDEX(PCIe!D$2:D$12,$B9)+((D9*3.3)/12)/$P$3+((E9*5)/12)/$Q$3","v":0},null,null,null,null,{"$f":"INDEX(PCIe!D$2:D$12,$B9)+((D9*3.3)/12)/$P$3+((E9*5)/12)/$Q$3","v":0},{"$f":"I9/0.87/12","v":0},{"$f":"F9*12","v":0}]
["Riser 2:",1,null,{"$f":"INDEX(PCIe!B$14:B$20,$B10)","v":0},{"$f":"INDEX(PCIe!C$14:C$20,$B10)","v":0},{"$f":"INDEX(PCIe!D$14:D$19,$B10)+((D10*3.3)/12)/$P$3+((E10*5)/12)/$Q$3","v":0},null,null,null,null,{"$f":"INDEX(PCIe!D$14:D$19,$B10)+((D10*3.3)/12)/$P$3+((E10*5)/12)/$Q$3","v":0},{"$f":"I10/0.87/12","v":0},{"$f":"F10*12","v":0}]
["M.2: ",1,1,null,null,{"$f":"(C11-1)*INDEX(SSD!D$11:D$17,$B11)","v":0},null,null,null,null,{"$f":"(C11-1)*INDEX(SSD!D$11:D$17,$B11)","v":0},{"$f":"I11/0.87/12","v":0},{"$f":"F11*12","v":0},"* Up to 1 per riser"]
["Peripheral:",1]
[null,"Compute Module 1 SubTotals:",null,null,null,{"$f":"SUM(F5:F10)","v":0},{"$f":"SUM(G5:G10)","v":0},{"$f":"SUM(H7:H10)","v":0},{"$f":"SUM(I5:I10)","v":0},null,{"$f":"SUM(K4:K11)","v":0},{"$f":"SUM(L5:L10)","v":0},{"$f":"SUM(M4:M11)","v":0},null,"CPU1","CPU2","DIMM1","DIMM2"]
[null,"CLST Allowance:",null,null,null,null,null,null,null,null,{"$f":"M14/12","v":{"$error":"#REF!"}},0,{"$f":"SUM(O14:R14)","v":{"$error":"#REF!"}},null,{"$f":"IF(B5>1,INDEX(Processors!G2:G54,$B5)*(C6-1),0)","v":0},{"$f":"IF(#REF!>1,INDEX(Processors!G2:G54,#REF!)*(#REF!-1),0)","v":{"$error":"#REF!"}},{"$f":"IF(C7>1,INDEX(Memory!Q4:T9,'Configure Module 1'!B7,$C7-1),0)","v":0},{"$f":"IF(C8>1,INDEX(Memory!Q4:T9,'Configure Module 1'!B8,$C8-1),0)","v":0}]

{"sheet":"Configure Module 4","index":7,"n_rows":14,"n_cols":20,"rows_kept":14,"cut":false,"hidden":false,"merged":[[1,0,1,12]]}
["Power Budget"]
[{"$f":"CONCATENATE(\"Compute Module 4: \",INDEX(Compute_Module!A$2:A$16,$B4),\" Configuration\")","v":"Compute Module 4: (Select Compute Node) Configuration"},null,null,null,null,null,null,null,null,null,null,null,null,null,"CPU VRM Efficiency","3.3v VRM Efficiency","5v VRM Efficiency"]
[null,"Description",null,"+3.3V (amps)","+5V (amps)"," +12V (amps)","12V CPU1 (amps)","12V CPU2 (amps)","5V \nstby (amps)","Max 3.3v/5v (watts)","12V\nMAIN\n(Amps)","12V\nStby\n(Amps)","Power (Watts)",null,{"$f":"INDEX(Compute_Module!H$2:H$11,$B4)","v":1},{"$f":"INDEX(Compute_Module!I$2:I$11,$B4)","v":1},{"$f":"INDEX(Compute_Module!J$2:J$11,$B4)","v":1}]
["Compute Node:",1,null,{"$f":"INDEX(Compute_Module!B$2:B$16,$B4) *1","v":0},{"$f":"INDEX(Compute_Module!C$2:C$16,$B4) *1","v":0},{"$f":"INDEX(Compute_Module!D2:D14,'Configure Module 4'!B$4)","v":0},null,null,{"$f":"INDEX(Compute_Module!F$2:F$16,$B4) *1","v":0},null,{"$f":"INDEX(Compute_Module!D2:D14,'Configure Module 4'!B$4)","v":0},{"$f":"INDEX(Compute_Module!F$2:F$16,$B4) *1","v":0},{"$f":"INDEX(Compute_Module!G$2:G$16,$B4) *1","v":0},null,null,null,null,null,null,1]
["SSD 1:",1,null,null,null,{"$f":"INDEX(SSD!$D$2:$D$7,'Configure Module 4'!B$5)","v":0},null,null,null,null,{"$f":"INDEX(SSD!$D$2:$D$7,'Configure Module 4'!B$5)","v":0},{"$f":"I5/0.87","v":0},{"$f":"K5*12","v":0},"* Only allowed in 2U node selection",null,null,null,null,null,1]
["SSD 2:",1,null,null,null,{"$f":"INDEX(SSD!$D$2:$D$7,'Configure Module 4'!B$6)","v":0},null,null,null,null,{"$f":"INDEX(SSD!$D$2:$D$7,'Configure Module 4'!B$6)","v":0},{"$f":"I6/0.87","v":0},{"$f":"K6*12","v":0},"* Only allowed in 2U node selection",null,null,null,null,null,1]
["CPU 1 Memory:",1,1,null,null,null,{"$f":"(C7-1)*INDEX(Memory!B$4:B$11,$B7)/12/0.9","v":0},null,null,null,{"$f":"INDEX(Memory!B$4:B$11,$B7)*INDEX(Memory!$A$24:$A$27,$C$7)/12","v":0},{"$f":"I7/0.87/12","v":0},{"$f":"INDEX(Memory!B$4:B$11,$B7)*INDEX(Memory!$A$24:$A$27,$C$7)","v":0},null,null,null,null,null,null,4]
["CPU 2 Memory:",1,1,null,null,null,null,{"$f":"(C8-1)*INDEX(Memory!B$4:B$11,$B8)/12/0.9","v":0},null,null,{"$f":"INDEX(Memory!B$4:B$11,$B8)*INDEX(Memory!$A$24:$A$27,$C$8)/12","v":0},{"$f":"I8/0.87/12","v":0},{"$f":"INDEX(Memory!B$4:B$11,$B8)*INDEX(Memory!$A$24:$A$27,$C$8)","v":0}]
["Riser 1:",1,null,{"$f":"INDEX(PCIe!B$2:B$12,$B9)","v":0},{"$f":"INDEX(PCIe!C$2:C$12,$B9)","v":0},{"$f":"INDEX(PCIe!D$2:D$12,$B9)+((D9*3.3)/12)/$P$3+((E9*5)/12)/$Q$3","v":0},null,null,null,null,{"$f":"INDEX(PCIe!D$2:D$12,$B9)+((D9*3.3)/12)/$P$3+((E9*5)/12)/$Q$3","v":0},{"$f":"I9/0.87/12","v":0},{"$f":"F9*12","v":0}]
["Riser 2:",1,null,{"$f":"INDEX(PCIe!B$14:B$20,$B10)","v":0},{"$f":"INDEX(PCIe!C$14:C$20,$B10)","v":0},{"$f":"INDEX(PCIe!D$14:D$19,$B10)+((D10*3.3)/12)/$P$3+((E10*5)/12)/$Q$3","v":0},null,null,null,null,{"$f":"INDEX(PCIe!D$14:D$19,$B10)+((D10*3.3)/12)/$P$3+((E10*5)/12)/$Q$3","v":0},{"$f":"I10/0.87/12","v":0},{"$f":"F10*12","v":0}]
["M.2: ",1,1,null,null,{"$f":"(C11-1)*INDEX(SSD!D$11:D$17,$B11)","v":0},null,null,null,null,{"$f":"(C11-1)*INDEX(SSD!D$11:D$17,$B11)","v":0},{"$f":"I11/0.87/12","v":0},{"$f":"F11*12","v":0},"* Up to 1 per riser"]
["Peripheral:",1]
[null,"Compute Module 1 SubTotals:",null,null,null,{"$f":"SUM(F5:F10)","v":0},{"$f":"SUM(G5:G10)","v":0},{"$f":"SUM(H7:H10)","v":0},{"$f":"SUM(I5:I10)","v":0},null,{"$f":"SUM(K4:K11)","v":0},{"$f":"SUM(L5:L10)","v":0},{"$f":"SUM(M4:M11)","v":0},null,"CPU1","CPU2","DIMM1","DIMM2"]
[null,"CLST Allowance:",null,null,null,null,null,null,null,null,{"$f":"M14/12","v":{"$error":"#REF!"}},0,{"$f":"SUM(O14:R14)","v":{"$error":"#REF!"}},null,{"$f":"IF(B5>1,INDEX(Processors!G2:G54,$B5)*(C6-1),0)","v":0},{"$f":"IF(#REF!>1,INDEX(Processors!G2:G54,#REF!)*(#REF!-1),0)","v":{"$error":"#REF!"}},{"$f":"IF(C7>1,INDEX(Memory!Q4:T9,'Configure Module 1'!B7,$C7-1),0)","v":0},{"$f":"IF(C8>1,INDEX(Memory!Q4:T9,'Configure Module 1'!B8,$C8-1),0)","v":0}]

{"sheet":"Compute_Module","index":8,"n_rows":14,"n_cols":14,"rows_kept":14,"cut":false,"hidden":true,"merged":[]}
["Compute Node",3.3,5,"12BB",-12,"12VSB","Watts","CPU\nVRM%","5v\nVRM%","3v\nVRM%","MAX DIMM/socket",null,null,"* 5VStby only for ATX PSUs"]
["(Select Compute Node)",null,null,null,null,null,null,1,1,1]
["S9256WK1HLC",null,null,76.7,null,null,{"$f":"B3*3.3+C3*5+D3*12+E3*12+F3*5","v":920.40000000000009},0.93,0.85,0.85,24]
["S9248WK1HLC",null,null,67.599999999999994,null,null,{"$f":"B4*3.3+C4*5+D4*12+E4*12+F4*5","v":811.19999999999993},0.93,0.85,0.85,24]
["S9232WK1HLC",null,null,49.2,null,null,590.40000000000009,0.93,0.85,0.85,24]
["S9232WK1HAC",null,null,49.2,null,null,{"$f":"B6*3.3+C6*5+D6*12+E6*12+F6*5","v":590.40000000000009},0.93,0.85,0.85,24]
["S9248WK2HLC",null,null,67.599999999999994,null,null,811.19999999999993,0.93,0.85,0.85,24]
["S9232WK2HLC",null,null,49.2,null,null,590.40000000000009,0.93,0.85,0.85,24]
["S9248WK2HAC",null,null,67.599999999999994,null,null,{"$f":"B9*3.3+C9*5+D9*12+E9*12+F9*5","v":811.19999999999993},0.93,0.85,0.85,24]
["S9232WK2HAC",null,null,49.2,null,null,590.40000000000009,0.93,0.85,0.85,24]
["User Definable",null,null,null,null,null,0,null,null,null,24,"<-- Define Custom Numbers Here"]
["User Definable",null,null,null,null,null,0,null,null,null,24,"<-- Define Custom Numbers Here"]
["User Definable",null,null,null,null,null,0,null,null,null,24,"<-- Define Custom Numbers Here"]
["User Definable",null,null,null,null,null,0,null,null,null,24,"<-- Define Custom Numbers Here"]

{"sheet":"Chassis_Definition","index":9,"n_rows":12,"n_cols":15,"rows_kept":12,"cut":false,"hidden":true,"merged":[[0,12,0,13],[0,1,0,6],[10,9,10,10]]}
["Chassis","PS limits",null,null,null,null,null,"Max W","Total","80mm Fans","60mm fans","TOTAL","PS Eff%"]
["Selection","Form factor","5V","12V\n240V AC","12V\n115V AC","12VStby","5VSB","3.3v/5v","Watts","12V","12V",null,"240v","110v"]
["(Select Chassis)",null,null,0,0,0,null,null,null,0,null,null,1,1]
["FC2HLC21W3 (Liquid Cooled / 2100W (x3) PSUs)","2U",null,175,84,3.5,null,null,{"$f":"(D4*12)","v":2100},0,14.92,{"$f":"SUM(J4:K4)","v":14.92},0.94]
["FC2HAC16W3 (Air Cooled / 1600W (x3) PSUs)","2U",null,133,84,3.5,null,null,{"$f":"(D5*12)","v":1596},13.78,14.92,{"$f":"SUM(J5:K5)","v":28.7},0.96]
["User Definable",null,null,null,null,null,null,null,null,null,null,null,null,null,"<-- Define Custom Numbers Here"]
["User Definable",null,null,null,null,null,null,null,null,null,null,null,null,null,"<-- Define Custom Numbers Here"]
["User Definable",null,null,null,null,null,null,null,null,null,null,null,null,null,"<-- Define Custom Numbers Here"]
[]
[]
[null,null,null,null,"low line value"]
["Note: PS Eff is estimate @ typ voltage & 35% to 90% loading based on PS measurement data."]

{"sheet":"Processors","index":10,"n_rows":62,"n_cols":7,"rows_kept":62,"cut":false,"hidden":true,"merged":[]}
["Processor Types","TDP (W)","HS Fan (A)","Source",null,null,"CLST Saving"]
["(Select Processor)"]
["Intel(R) Xeon(R) Platinum 9222 CPU (250W)",250,null,null,null,45,87]
["Intel(R) Xeon(R) Platinum 9242 CPU (350W)",350,null,null,null,40,{"$f":"(B4-F4)*0.8","v":248}]
["Intel(R) Xeon(R) Platinum 9282 CPU (400W)",400,null,null,null,40,68]
[null,null,null,null,null,40,87]
[null,null,null,null,null,40,75]
[null,null,null,null,null,40,75]
[null,null,null,null,null,35,50]
[null,null,null,null,null,35,70]
[null,null,null,null,null,35,50]
[null,null,null,null,null,40,68]
[null,null,null,null,null,35,50]
[null,null,null,null,null,35,49]
[null,null,null,null,null,35,44]
[null,null,null,null,null,30,40]
[null,null,null,null,null,30,51]
[null,null,null,null,null,30,{"$f":"(B18-F18)*0.8","v":-24}]
[null,null,null,null,null,30,57]
[null,null,null,null,null,30,49]
[null,null,null,null,null,25,57]
[null,null,null,null,null,25,90]
[null,null,null,null,null,null,73]
[null,null,null,null,null,null,65]
[null,null,null,null,null,null,70]
[null,null,null,null,null,null,81]
[null,null,null,null,null,null,65]
[null,null,null,null,null,null,84]
[null,null,null,null,null,null,81]
[null,null,null,null,null,null,87]
[null,null,null,null,null,null,65]
[null,null,null,null,null,null,50]
[null,null,null,null,null,null,61]
[null,null,null,null,null,null,55]
[null,null,null,null,null,null,52]
[null,null,null,null,null,null,42]
[null,null,null,null,null,null,55]
[null,null,null,null,null,null,47]
[null,null,null,null,null,null,52]
[null,null,null,null,null,null,46]
[null,null,null,null,null,null,47]
[null,null,null,null,null,null,50]
[null,null,null,null,null,null,54]
[null,null,null,null,null,null,43]
[null,null,null,null,null,null,50]
[null,null,null,null,null,null,54]
[null,null,null,null,null,null,49]
[]
[]
[]
[]
[]
[]
[]
[]
[]
[]
[]
[]
[]
[0]
[1]

{"sheet":"Memory","index":11,"n_rows":29,"n_cols":20,"rows_kept":29,"cut":false,"hidden":false,"merged":[[1,16,1,19],[1,1,1,9],[1,12,1,13],[1,14,1,15],[0,1,0,9]]}
[null,"Watts of +12V"]
[null,"# of DIMMS",null,null,null,null,null,null,null,null,null,null,"Hi Stress DIMM P",null,"Min Throtted P",null,"CLST Saving"]
["Memory",1,8,16,24,null,null,null,null,null,null,null,"1DPC","2DPC","1DPC","2DPC",1,2,4,8]
["(Select Memory)"]
["8GB DDR4 RDIMM (8Gb, 1Rx8)",4.08,{"$f":"B5*C$3","v":32.64},{"$f":"B5*D$3","v":65.28},{"$f":"B5*E$3","v":97.92},null,null,null,null,null,null,null,3,2.2999999999999998,2,1.6,{"$f":"B5-O5","v":2.08},{"$f":"(M5-O5)*2","v":2},{"$f":"(M5-O5)*4","v":4},{"$f":"(N5-P5)*8","v":5.5999999999999979}]
["16GB DDR4 RDIMM (16Gb 1Rx16)",5.69,45.52,91.04,136.56,null,null,null,null,null,null,null,4,3,2.2000000000000002,2,{"$f":"B6-O6","v":3.49},{"$f":"(M6-O6)*2","v":3.5999999999999996},{"$f":"(M6-O6)*4","v":7.1999999999999993},{"$f":"(N6-P6)*8","v":8}]
["16GB DDR4 RDIMM (16Gb, 2Rx8)",4.4000000000000004,35.200000000000003,70.400000000000006,105.60000000000001,null,null,null,null,null,null,null,3,2.2999999999999998,2,1.6,{"$f":"B7-O7","v":2.4000000000000004},{"$f":"(M7-O7)*2","v":2},{"$f":"(M7-O7)*4","v":4},{"$f":"(N7-P7)*8","v":5.5999999999999979}]
["32GB DDR4 RDIMM (32Gb, 2Rx8)",7.35,58.8,117.6,176.39999999999998,null,null,null,null,null,null,null,3.6,2.7,2.8,2,{"$f":"B8-O8","v":4.55},{"$f":"(M8-O8)*2","v":1.6000000000000005},{"$f":"(M8-O8)*4","v":3.2000000000000011},{"$f":"(N8-P8)*8","v":5.6000000000000014}]
["64GB DDR4 LRDIMM (64Gb, 4Rx4)",12.51,100.08,200.16,300.24,null,null,null,null,null,null,null,4,3,2.2000000000000002,2,{"$f":"B9-O9","v":10.309999999999999},{"$f":"(M9-O9)*2","v":3.5999999999999996},{"$f":"(M9-O9)*4","v":7.1999999999999993},{"$f":"(N9-P9)*8","v":8}]
["128GB DDR4 LRDIMM (128Gb, 4Rx4)",12.11,96.88,193.76,290.64,null,null,null,null,null,"<-- Define Custom Numbers Here"]
[null,null,null,null,null,null,null,null,null,null,"<-- Define Custom Numbers Here"]
[null,null,null,null,null,null,null,null,null,null,"<-- Define Custom Numbers Here"]
[null,null,null,null,null,null,null,null,null,null,"<-- Define Custom Numbers Here"]
[null,null,null,null,null,null,null,null,null,null,"<-- Define Custom Numbers Here"]
[null,null,null,null,null,null,null,null,null,null,"<-- Define Custom Numbers Here"]
[null,null,null,null,null,null,null,null,null,null,"<-- Define Custom Numbers Here"]
[null,null,null,null,null,null,null,null,null,null,"<-- Define Custom Numbers Here"]
[]
[null,null,null,null,null,null,null,null,null,null,null,null,null,"Idd Burst read","Active Stb","VDD nom","VPP nom"]
[null,null,null,null,null,null,null,null,null,null,null,null,null,"Amps","Amps","Volts","Volts"]
["Note:",null,8,12,16,null,null,null,null,null,null,null,{"$f":"(P21*N21)+(Q21*O21)","v":1.8710999999999998},1.5029999999999999,2.7E-2,1.2,2.5]
["DIMM power will vary depending on the # of DIMMs & the actual strees/bandwidth used.",null,null,null,null,null,null,null,null,null,null,null,{"$f":"(P22*N22)+(Q22*O22)","v":3.0510000000000002},2.4300000000000002,5.3999999999999999E-2,1.2,2.5]
[null,null,null,null,null,null,null,null,null,null,null,null,{"$f":"(P23*N23)+(Q23*O23)","v":2.2085999999999997},1.728,5.3999999999999999E-2,1.2,2.5]
[0,null,null,null,null,null,null,null,null,null,null,null,{"$f":"(P24*N24)+(Q24*O24)","v":3.8771999999999998},3.0059999999999998,0.108,1.2,2.5]
[4,null,null,null,null,null,null,null,null,null,null,null,{"$f":"(P25*N25)+(Q25*O25)","v":5.0759999999999996},3.78,0.216,1.2,2.5]
[8]
[12]
[]
[null,null,null,null,{"$f":"B9*12","v":150.12}]

{"sheet":"PCIe","index":12,"n_rows":24,"n_cols":8,"rows_kept":24,"cut":false,"hidden":false,"merged":[]}
["PCIe slot 1 Add in Cards","Amps of +3.3V","Amps of +5V","Amps of +12VBB","Amps of    -12V","Watts"]
["Slot Empty",null,null,null,null," "]
["PCIe 5W",null,null,0.44,null,{"$f":"B3*3.3+C3*5+D3*12+E3*12","v":5.28},null,"Specs needed to get the power consumption"]
["PCIe12W",null,null,0.83,null,9.9599999999999991]
["PCIe 15W",null,null,1.25,null,15]
["PCIe 20W",null,null,1.85]
["PCIe SSD 25W",null,null,2.0830000000000002,null,24.996000000000002,"<-- Define Custom Card Here"]
["User Definable ",null,null,null,null,0,"<-- Define Custom Card Here"]
["User Definable ",null,null,null,null,0,"<-- Define Custom Card Here"]
["User Definable ",null,null,null,null,0,"<-- Define Custom Card Here"]
["User Definable ",null,null,null,null,0,"<-- Define Custom Card Here"]
["User Definable ",null,null,null,null,0,"<-- Define Custom Card Here"]
["PCIe slot 2 Add in Cards","Amps of +3.3V","Amps of +5V","Amps of +12VBB","Amps of    -12V","Watts"]
["Slot Empty",null,null,null,null," "]
["PCIe 5W",null,null,0.44,null,{"$f":"B15*3.3+C15*5+D15*12+E15*12","v":5.28}]
["PCIe 12W",null,null,0.83,null,9.9599999999999991]
["PCIe 15W",null,null,1.25,null,15]
["PCIe 20W",null,null,1.85,null,22.200000000000003]
["PCIe SSD 25W",null,null,2.0830000000000002,null,24.996000000000002,"<-- Define Custom Card Here"]
["User Definable ",null,null,null,null,0,"<-- Define Custom Card Here"]
["User Definable ",null,null,null,null,0,"<-- Define Custom Card Here"]
["User Definable ",null,null,null,null,0,"<-- Define Custom Card Here"]
["User Definable ",null,null,null,null,0,"<-- Define Custom Card Here"]
["User Definable ",null,null,null,null,0,"<-- Define Custom Card Here"]

{"sheet":"SSD","index":13,"n_rows":24,"n_cols":8,"rows_kept":24,"cut":false,"hidden":false,"merged":[]}
["PCIe SSD","Amps of +3.3V","Amps of +5V","Amps of +12V","Watts"]
["Empty",null,null,null,{"$f":"C2*5+D2*12","v":0}]
["Intel® SSD DC P4510/4610 Series 2.5\" FF, 2.0TB (25W)",null,null,2.08,24.96,null,"Review with Martin series available for WKP and specs"]
["Intel® SSD DC P4800X Series 2.5\" FF, 2.0TB (18W)",null,null,0.67,{"$f":"C4*5+D4*12","v":8.0400000000000009}]
["User Definable",null,null,null,0,"<-- Define Custom Device Here"]
["User Definable",null,null,null,0,"<-- Define Custom Device Here"]
["User Definable",null,null,null,0,"<-- Define Custom Device Here"]
[]
[]
["M.2 SSD","Amps of +3.3V","Amps of +5V","Amps of +12V","Watts"]
["Empty",null,null,null,{"$f":"C11*5+D11*12","v":0}]
["PCIe 4511/P4101 Series M.2 Typical Power (5W)",null,null,0.45800000000000002,5.4960000000000004]
["SATA 5100 M.2 Typical Power (5W)",null,null,0.2,2.4000000000000004]
["SATA D3-S4510 M.2 Typical Power (<5W)"]
["User Definable",null,null,null,0,"<-- Define Custom Device Here"]
["User Definable",null,null,null,0,"<-- Define Custom Device Here"]
["User Definable",null,null,null,0,"<-- Define Custom Device Here"]
[null,null,null,null,null,null,null,0]
[null,null,null,null,null,null,null,1]
[null,null,null,null,null,null,null,2]
[]
[0]
[1]
[2]

{"sheet":"Peripherals","index":14,"n_rows":16,"n_cols":10,"rows_kept":16,"cut":false,"hidden":true,"merged":[]}
["Misc Peripherals","Amps of +3.3V","Amps of +5V","Amps of +12V","Amps of    -12V","Amps of 3vsb","Watts"]
["Slim-Line Devices"]
["Empty"]
["RMM4LITE2",null,null,null,null,null,{"$f":"B4*3.3+C4*5+D4*12+E4*12+F4*5","v":0},"<-- Define Custom Peripherals Here",null,"* Need VROC and RMM spec"]
["VROC",null,null,null,null,null,{"$f":"B5*3.3+C5*5+D5*12+E5*12+F5*5","v":0},"<-- Define Custom Peripherals Here"]
["User Definable",null,null,null,null,null,{"$f":"B6*3.3+C6*5+D6*12+E6*12+F6*5","v":0},"<-- Define Custom Peripherals Here"]
["User Definable",null,null,null,null,null,null,"<-- Define Custom Peripherals Here"]
["User Definable",null,null,null,null,null,null,"<-- Define Custom Peripherals Here"]
["User Definable",null,null,null,null,null,{"$f":"B9*3.3+C9*5+D9*12+E9*12+F9*5","v":0},"<-- Define Custom Peripherals Here"]
["User Definable",null,null,null,null,null,{"$f":"B10*3.3+C10*5+D10*12+E10*12+F10*5","v":0},"<-- Define Custom Peripherals Here"]
["Other Peripheral Devices"]
["User Definable",null,null,null,null,null,{"$f":"B12*3.3+C12*5+D12*12+E12*12+F12*5","v":0},"<-- Define Custom Peripherals Here"]
["User Definable",null,null,null,null,null,0,"<-- Define Custom Peripherals Here"]
["User Definable",null,null,null,null,null,0,"<-- Define Custom Peripherals Here"]
["User Definable",null,null,null,null,null,0,"<-- Define Custom Peripherals Here"]
["User Definable",null,null,null,null,null,0,"<-- Define Custom Peripherals Here"]

{"sheet":"Taylor Pass_Normal","index":15,"n_rows":30,"n_cols":17,"rows_kept":30,"cut":false,"hidden":true,"merged":[[16,0,18,0],[19,0,21,0],[22,0,26,0],[27,0,29,0],[0,0,0,1],[4,0,15,0],[0,2,0,5],[0,11,0,15],[1,0,2,0],[3,2,3,5],[3,6,3,10],[3,11,3,15],[0,6,0,10]]}
["Notes:\n1.  27°C is limited to elevations of 900m or less\n2.  Quad Port IO Modules cannot be installed simultaneously with PCI Cards.\n3.  Processor - may have significent performance impact.\n4.  Processors - There may be some performance impact during fan failures.\n5.  For A3/A4 individual PS selection:\n      1) For dual power supply configuration, power budget must fit within single power supply rated load and be installed in dual configuration\n      2) For single power supply configuration, power budget must be sized with 30% margin to single power supply rated load.\n6.  When identifying memory in the table, only Rank and Width are required.  Capacity is not required.\n7.  Processor limited to 90W to support 1.5W AOC cable. Processor limited to 90W and memory limited to DRx4 to support 2W AOC cable. \n8. Supported with one HDD per node configuration.",null,"Base System SKUs:\nH2216TLP",null,null,null,"Base System SKUs:\nH2312TLP",null,null,null,null,"Base System SKUs:\nH2224TLP"]
["ASHRAE (See note 1)","Classifications","A2","27C","A3","A4","27C","A2","A2","A3","A4","27C","A2","A2","A3","A4"]
[null,"Max Ambient","35C","27C","40C","45C","27C","35C","35C","40C","45C","27C","35C","35C","40C","45C","<-- See note 1"]
["PS (See note 5)","Power Supplies","See Note 5",null,null,null,"See Note 5",null,null,null,null,"See Note 5"]
["EP Processors (See notes 3 and 4)","EP, 135w, 12C  (Intel® Xeon® processor E5-2690 V3)","●","●","●",null,"●",null,"●",null,"","●",null,"●",null,""]
[null,"EP, 120w, 12C  (Intel® Xeon® processor E5-2680 V3, E5-2670 V3)","●","●","●",null,"●",null,"●",null,"","●",null,"●",null,""]
[null,"EP, 105w, 10C  (Intel® Xeon® processor E5-2660 V3, E5-2650 V3)","●","●","●",null,"●",null,"●",null,null,"●",null,"●"]
[null,"EP, 90w, 8C (Intel® Xeon® processor E5-2640 V3)","●","●","●","●","●","●","●","3,4",null,"●","●","●","3,4"]
[null,"EP, 85w,8C,6C (Intel® Xeon® processor E5-2630 V3, E5-2620 V3, E5-2609 V3, E5-2603 V3)","●","●","●","●","●","●","●","3,4",3,"●","●","●","3,4",3]
[null,"EP, 135w, 8C,6C,4C (Intel® Xeon® processor E5-2667 V3, E5-2643 V3, E5-2637 V3)","3,4","●",null,null,"3,4",null,null,null,null,"3,4"]
[null,"EP, 105w, 4C (Intel® Xeon® processor E5-2623 V3)","●","●","●",null,"●",null,"●",null,null,"●",null,"●"]
[null,"EP, 65w, 12C  (Intel® Xeon® processor E5-2650L V3)","●","●","●","●","●","●","●","3,4",3,"●","●","●","3,4",3]
[null,"EP, 55w, 8C  (Intel® Xeon® processor E5-2630L V3)","●","●","●","●","●","●","●","3,4",3,"●","●","●","3,4",3]
[null,"EP, 145w, 14C,18C  (Intel® Xeon® processor E5-2697 V3, E5-2699 V3)","3,4","●",null,null,"3,4",null,null,null,null,"3,4"]
[null,"EP, 135w, 16C  (Intel® Xeon® processor E5-2698 V3)","3,4","●",null,null,"3,4",null,null,null,null,"3,4"]
[null,"EP, 120w, 14C (Intel® Xeon® processor E5-2695 V3, E5-2683 V3)","3,4","●",null,null,"3,4",null,null,null,null,"3,4"]
["Memory Type (See note 6)","RDIMM-2Rx8,1Rx4","●","●","●","●","●","●","●","●","●","●","●","●","●","●"]
[null,"RDIMM-DRx4","●","●","●","●","●","●","●","●","●","●","●","●","●","●"]
[null,"LRDIMM-QRx4 DDP","●","●","●","●","●","●","●","●","","●","●","●","●",""]
["Add-in Cards (See note 2)","PCI Cards with 100LFM/55C spec","●","●","●","●","●","●","●","●","●","●","●","●","●","●"]
[null,"PCI Cards With 200LFM/55C spec","●","●",null,null,8,"●",8,null,null,8,"●",8,null,null,"<-- See note 2"]
[null,"PCI Cards With 300LFM/55C spec",null,"●",null,null,null,8,null,null,null,null,8,null,null,null,"<-- See note 2"]
["Module (See note 2)","AXX10GBTWLIOM - Dual 10GBASE-T IO Module ","●","●","●","●","●","●","●","●","●","●","●","●","●","●"]
[null,"AXX10GBNIAIOM - Dual SFP+ port 10GbE IO Module","●","●","●","●","●","●","●","●","●","●","●","●","●","●"]
[null,"AXX1FDRIBIOM - Single Port FDR Infiniband IO Module","●","●","●","●","●","●","●","●","●","●","●","●","●","●"]
[null,"AXX2FDRIBIOM - Dual Port FDR Infiniband IO Module","●","●","●","●","●","●","●","●","●","●","●","●","●","●"]
[null,"AXX4P1GBPWLIOM - Quad Port 1GbE IO Module","●","●","●","●","●","●","●","●","●","●","●","●","●","●","<-- See note 2"]
["QSFP Cables (See note 7)","Passive Cable","●","●","●","●","●","●","●","●","●","●","●","●","●","●"]
[null,"Active Optical Cable (1.5W)","●","●",null,null,"●","●",7,null,null,"●","●",7]
[null,"Active Optical Cable (2W)",null,"●",null,null,null,"●",7,null,null,null,"●",7,null,null,"<-- See note 7"]

{"sheet":"Taylor Pass_Fan Fail","index":16,"n_rows":30,"n_cols":8,"rows_kept":30,"cut":false,"hidden":true,"merged":[[16,0,18,0],[19,0,21,0],[22,0,26,0],[27,0,29,0],[4,0,15,0],[0,3,0,4],[0,5,0,6],[1,0,2,0],[3,3,3,4],[3,5,3,6],[0,0,0,1]]}
["Notes:\n1.  27°C is limited to elevations of 900m or less\n2.  Quad Port IO Modules cannot be installed simultaneously with PCI Cards.\n3.  Processor - 135W - 4/6/8/16C, 120W-14C and 145W - 14/18C may have some performance impact.\n4.  Processors - There may be some performance impact during fan failures.\n5.  For A3/A4 individual PS selection:\n      1) For dual power supply configuration, power budget must fit within single power supply rated load and be installed in dual configuration, or\n      2) For single power supply configuration, power budget must be sized with 30% margin to single power supply rated load.\n6.  When identifying memory in the table, only Rank and Width are required.  Capacity is not required.\n7.  Processor limited to 90W to support 1.5W AOC cable. Processor limited to 90W and memory limited to DRx4 to support 2W AOC cable. \n8. Fan fail is not supported at A3/A4",null,"Base System SKUs:\nR2216TLP","Base System SKUs:\nR2312TLP",null,"Base System SKUs:\nR2224TLP"]
["ASHRAE (See note 1)","Classifications","A2","27C","A2","27C","A2"]
[null,"Max Ambient","35C","27C","35C","27C","35C","<-- See note 1"]
["PS (See note 5)","Power Supplies","See Note 5","See Note 5",null,"See Note 5"]
["EP Processors (See notes 3 and 4)","EP, 135w, 12C  (Intel® Xeon® processor E5-2690 V3)","3,4","3,4","3,4","3,4","3,4"]
[null,"EP, 120w, 12C  (Intel® Xeon® processor E5-2680 V3, E5-2670 V3)","3,4","3,4","3,4","3,4","3,4"]
[null,"EP, 105w, 10C  (Intel® Xeon® processor E5-2660 V3, E5-2650 V3)","3,4","3,4","3,4","3,4","3,4"]
[null,"EP, 90w, 8C (Intel® Xeon® processor E5-2640 V3)","3,4","3,4","3,4","3,4","3,4"]
[null,"EP, 85w,8C,6C (Intel® Xeon® processor E5-2630 V3, E5-2620 V3, E5-2609 V3, E5-2603 V3)","3,4","3,4","3,4","3,4","3,4"]
[null,"EP, 135w, 8C,6C,4C (Intel® Xeon® processor E5-2667 V3, E5-2643 V3, E5-2637 V3)","3,4","3,4",null,"3,4"]
[null,"EP, 105w, 4C (Intel® Xeon® processor E5-2623 V3)","3,4","3,4","3,4","3,4","3,4"]
[null,"EP, 65w, 12C  (Intel® Xeon® processor E5-2650L V3)","3,4","3,4","3,4","3,4","3,4"]
[null,"EP, 55w, 8C  (Intel® Xeon® processor E5-2630L V3)","3,4","3,4","3,4","3,4","3,4"]
[null,"EP, 145w, 14C,18C  (Intel® Xeon® processor E5-2697 V3, E5-2699 V3)","3,4","3,4",null,"3,4"]
[null,"EP, 135w, 16C  (Intel® Xeon® processor E5-2698 V3)","3,4","3,4",null,"3,4"]
[null,"EP, 120w, 14C (Intel® Xeon® processor E5-2695 V3, E5-2683 V3)","3,4","3,4",null,"3,4"]
["Memory Type (See note 6)","RDIMM-2Rx8,1Rx4","●","●","●","●","●"]
[null,"RDIMM-DRx4","●","●","●","●","●"]
[null,"LRDIMM-QRx4 DDP","●","●","●","●","●"]
["Add-in Cards (See note 2)","PCI Cards with 100LFM/55C spec","●"]
[null,"PCI Cards with 200LFM/55C spec"]
[null,"PCI Cards with 300LFM/55C spec",null,null,null,null,null,"<-- See note 2"]
["Module (See note 2)","AXX10GBTWLIOM - Dual 10GBASE-T IO Module ","●","●","●","●","●"]
[null,"AXX10GBNIAIOM - Dual SFP+ port 10GbE IO Module","●","●","●","●","●"]
[null,"AXX1FDRIBIOM - Single Port FDR Infiniband IO Module","●","●","●","●","●"]
[null,"AXX2FDRIBIOM - Dual Port FDR Infiniband IO Module","●","●","●","●","●"]
[null,"AXX4P1GBPWLIOM - Quad Port 1GbE IO Module","●","●","●","●","●","<-- See note 2"]
["QSFP Cables (See note 7)","Passive Cable","●","●","●","●","●"]
[null,"Active Optical Cable (1.5W)","●","●",7,"●",7]
[null,"Active Optical Cable (2W)","●","●",7,"●",7,"<-- See note 7"]

{"sheet":"Walker Pass_Normal","index":17,"n_rows":33,"n_cols":31,"rows_kept":33,"cut":false,"hidden":false,"merged":[[9,0,18,0],[19,0,20,0],[23,0,30,0],[1,9,1,10],[1,11,1,12],[1,13,1,14],[1,27,1,30],[4,0,5,0],[1,0,1,2],[1,3,1,4],[1,5,1,6],[1,7,1,8]]}
[]
[" Thermal Config Matrix                                                           Normal operating mode                                                                                                                                                                                                                       \"●\"= Full Support without limitation;                              \n\" \"(Blank)=Not support; ",null,null,"1U LC - 4 sleds",null,"2U LC - 2 sleds",null,"2U AC - 2 sleds",null,"1U AC - 4 sleds ",null,"1U/2U AC- Combined",null,"1U/2U LC -Combined ",null,null,null,null,null,null,null,null,null,null,null,null,null,"WCP"]
["ASHRAE (See note1, 2)",null,"Max Ambient","27°C","35°C","27°C","35°C","27°C","35°C","27°C","35°C ","27°C","35°C ","27°C","35°C ",null,null,null,null,null,null,null,null,null,null,null,null,"27°C(1)","35°C","40°C","45°C"]
[null,null,"Altitude",900,900,900,900,900,900,900,900,900,900,900,900]
["PSU ",null,"1600 W AC","●","●","●","●","●","●","TBD","TBD","TBD","TBD","●","●"]
[null,null,"2100 W AC","●","●","●","●","●","●","TBD","TBD","TBD","TBD","●","●",null,null,null,null,null,null,null,null,null,null,null,null,"●","●","●","●"]
[null,null,"400 W","●","●","●","●",null,null,"TBD","TBD","TBD","TBD","●","●"]
["CPU",null,"350 W","●","●","●","●","●","●","TBD","TBD","TBD","TBD","●","●"]
[null,null,"250 W","●","●","●","●","●","●","TBD","TBD","TBD","TBD","●","●"]
["Memory Type ",null,"8GB RDIMM","●","●","●","●","●","●","TBD","TBD","TBD","TBD","●","●",null,null,null,null,null,null,null,null,null,null,null,null,"●","●","●","●"]
[null,null,"16GB RDIMM","●","●","●","●","●","●","TBD","TBD","TBD","TBD","●","●"]
[null,null,"16GB RDIMM","●","●","●","●","●","●","TBD","TBD","TBD","TBD","●","●"]
[null,null,"16GB RDIMM","●","●","●","●","●","●","TBD","TBD","TBD","TBD","●","●"]
[null,null,"16GB RDIMM","●","●","●","●","●","●","TBD","TBD","TBD","TBD","●","●"]
[null,null,"32GB RDIMM","●","●","●","●","●","●","TBD","TBD","TBD","TBD","●","●"]
[null,null,"32GB RDIMM","●","●","●","●","●","●","TBD","TBD","TBD","TBD","●","●"]
[null,null,"64GB LDIMM","●","●","●","●","●","●","TBD","TBD","TBD","TBD","●","●"]
[null,null,"64GB LDIMM","●","●","●","●","●","●","TBD","TBD","TBD","TBD","●","●",null,null,null,null,null,null,null,null,null,null,null,null,"●","●","●","●"]
[null,null,"128GB LDIMM","●","●","●","●","●","●","TBD","TBD","TBD","TBD","●","●",null,null,null,null,null,null,null,null,null,null,null,null,"●","●","●","●"]
["Add-in Cards  - Riser #1 and  #2",null,"Up to 25 W (we don’t have a AIC with more power than 19 W)","●","●","●","●","●","●",null,null,null,null,"●","●",null,null,null,null,null,null,null,null,null,null,null,null,"●","●","●","●"]
[null,null,"Up to 20 W","●","●","●","●","●","●","TBD","TBD","TBD","TBD","●","●"]
["U.2 - Riser #1 and #2",null,"Up to 25 W","●","●","●","●","●","●","TBD","TBD","TBD","TBD","●","●",null,null,null,null,null,null,null,null,null,null,null,null,"●","●","●","●"]
["M.2- Riser #1 and #2",null,"Up to 6 W","●","●","●","●","●","●","TBD","TBD","TBD","TBD","●","●"]
["Lewisburg",null,null,"●",null,"●",null,"●",null,null,null,null,null,"●",null,null,null,null,null,null,null,null,null,null,null,null,null,"","","",""]
[null,null,null,"●",null,"●",null,"●",null,null,null,null,null,null,null,null,null,null,null,null,null,null,null,null,null,null,null,"","","",""]
[null,null,null,"●",null,"●",null,"●"]
[null,null,"LBG L (20W)","●",null,"●",null,"●"]
[null,null,"LBG E (21W)","●",null,"●",null,"●"]
[null,null,"LBG M (25W)",11,null,11,null,11]
[null,null,"LBG M (29W)",11,null,11,null,11]
[null,null,null,null,null,null,null,"●"]
["Copperville",null,"9W","●",null,"●",null,"●",null,null,null,null,null,null,null,null,null,null,null,null,null,null,null,null,null,null,null,"","","",""]
[null,null,null,null,null,null,null,null,null,null,null,null,null,null,null,null,null,null,null,null,null,null,null,null,null,null,null,"","","",""]

{"sheet":"Walker Pass_Fan Fail","index":18,"n_rows":33,"n_cols":31,"rows_kept":33,"cut":false,"hidden":false,"merged":[[1,27,1,30],[4,0,5,0],[9,0,18,0],[19,0,20,0],[23,0,30,0],[1,7,1,8],[1,9,1,10],[1,11,1,12],[1,13,1,14],[1,0,1,2],[1,3,1,4],[1,5,1,6]]}
[]
[" Thermal Config Matrix                                                           Normal operating mode                                                                                                                                                                                                                       \"●\"= Full Support without limitation;                              \n\" \"(Blank)=Not support; ",null,null,"1U LC - 4 sleds",null,"2U LC - 2 sleds",null,"2U AC - 2 sleds",null,"1U AC - 4 sleds ",null,"1U/2U AC- Combined",null,"1U/2U LC -Combined ",null,null,null,null,null,null,null,null,null,null,null,null,null,"WCP"]
["ASHRAE (See note1, 2)",null,"Max Ambient","27°C","35°C","27°C","35°C","27°C","35°C","27°C","35°C ","27°C","35°C ","27°C","35°C ",null,null,null,null,null,null,null,null,null,null,null,null,"27°C(1)","35°C","40°C","45°C"]
[null,null,"Altitude",900,900,900,900,900,900,900,900,900,900,900,900]
["PSU ",null,"1600 W AC","●","●","●","●","●","●","TBD","TBD","TBD","TBD","●","●"]
[null,null,"2100 W AC","●","●","●","●","●","●","TBD","TBD","TBD","TBD","●","●",null,null,null,null,null,null,null,null,null,null,null,null,"●","●","●","●"]
[null,null,"400 W",4,4,4,4,null,null,"TBD","TBD","TBD","TBD",4,4]
["CPU( See note 5)",null,"350 W",4,4,4,4,4,4,"TBD","TBD","TBD","TBD",4,4]
[null,null,"250 W",4,4,4,4,4,4,"TBD","TBD","TBD","TBD",4,4]
["Memory Type ",null,"8GB RDIMM","●","●","●","●","●","●","TBD","TBD","TBD","TBD","●","●",null,null,null,null,null,null,null,null,null,null,null,null,"●","●","●","●"]
[null,null,"16GB RDIMM","●","●","●","●","●","●","TBD","TBD","TBD","TBD","●","●"]
[null,null,"16GB RDIMM","●","●","●","●","●","●","TBD","TBD","TBD","TBD","●","●"]
[null,null,"16GB RDIMM","●","●","●","●","●","●","TBD","TBD","TBD","TBD","●","●"]
[null,null,"16GB RDIMM","●","●","●","●","●","●","TBD","TBD","TBD","TBD","●","●"]
[null,null,"32GB RDIMM","●","●","●","●","●","●","TBD","TBD","TBD","TBD","●","●"]
[null,null,"32GB RDIMM","●","●","●","●","●","●","TBD","TBD","TBD","TBD","●","●"]
[null,null,"64GB LDIMM","●","●","●","●","●","●","TBD","TBD","TBD","TBD","●","●"]
[null,null,"64GB LDIMM","●","●","●","●","●","●","TBD","TBD","TBD","TBD","●","●",null,null,null,null,null,null,null,null,null,null,null,null,"●","●","●","●"]
[null,null,"128GB LDIMM","●","●","●","●","●","●","TBD","TBD","TBD","TBD","●","●",null,null,null,null,null,null,null,null,null,null,null,null,"●","●","●","●"]
["Add-in Cards  - Riser #1 and  #2",null,"Up to 25 W (we don’t have a AIC with more power than 19 W)","●","●","●","●","●","●",null,null,null,null,"●","●",null,null,null,null,null,null,null,null,null,null,null,null,"●","●","●","●"]
[null,null,"Up to 20 W","●","●","●","●","●","●","TBD","TBD","TBD","TBD","●","●"]
["U.2 - Riser #1 and #2",null,"Up to 25 W","●","●","●","●","●","●","TBD","TBD","TBD","TBD","●","●",null,null,null,null,null,null,null,null,null,null,null,null,"●","●","●","●"]
["M.2- Riser #1 and #2",null,"Up to 6 W","●","●","●","●","●","●","TBD","TBD","TBD","TBD","●","●"]
["Lewisburg",null,null,"●",null,"●",null,"●",null,null,null,null,null,"●",null,null,null,null,null,null,null,null,null,null,null,null,null,"","","",""]
[null,null,null,"●",null,"●",null,"●",null,null,null,null,null,null,null,null,null,null,null,null,null,null,null,null,null,null,null,"","","",""]
[null,null,null,"●",null,"●",null,"●"]
[null,null,"LBG L (20W)","●",null,"●",null,"●"]
[null,null,"LBG E (21W)","●",null,"●",null,"●"]
[null,null,"LBG M (25W)",11,null,11,null,11]
[null,null,"LBG M (29W)",11,null,11,null,11]
[null,null,null,null,null,null,null,"●"]
["Copperville",null,"9W","●",null,"●",null,"●",null,null,null,null,null,null,null,null,null,null,null,null,null,null,null,null,null,null,null,"","","",""]
[null,null,null,null,null,null,null,null,null,null,null,null,null,null,null,null,null,null,null,null,null,null,null,null,null,null,null,"","","",""]

{"sheet":"Revision","index":19,"n_rows":4,"n_cols":4,"rows_kept":4,"cut":false,"hidden":true,"merged":[]}
[{"$f":"MAX(A4:A24)","v":"2019-10-29"},{"$f":"MAX(B4:B24)","v":1},null,"<=== Linked to Summary Tab."]
[]
["Date","Rev","Notes","Init"]
["2019-10-29",1,"Initial Release."]

{"sheet":"Macro1","index":20,"n_rows":0,"n_cols":0,"rows_kept":0,"cut":false,"hidden":true,"merged":[]}